[Event "HSK GM Invitational 2022"]
[Site "Hamburg"]
[Date "2022.05.21"]
[Round "2.2"]
[White "Carlstedt, Jonathan"]
[Black "Kotronias, Vasilios"]
[Result "0-1"]
[ECO "B31"]
[WhiteElo "2444"]
[BlackElo "2465"]
[Annotator "TA"]
[PlyCount "120"]
[EventDate "2022.05.20"]
[EventType "tourn"]
[EventCountry "GER"]
[SourceTitle "playchess.com"]
[Source "ChessBase"]
[SourceQuality "1"]
[TimeControl "40/5400+30:1800+30"]

{[%evp 15,120,10,14,4,6,10,13,-2,2,6,34,25,35,47,33,23,33,31,32,0,-20,-14,35,0,2,7,38,33,40,44,34,36,37,31,44,42,70,43,52,49,45,10,40,22,26,0,0,0,0,0,0,-4,0,0,0,0,0,0,0,0,0,0,0,0,0,0,0,-196,-177,-122,-132,-422,-423,-417,-408,-540,-523,-465,-427,-910,-794,-1102,-1047,-937,0,-791,-753,-1147,-1126,-1787,-1768,-4694,-4193,-2283,-1899,-29969,-29970,-29972,-29971,-29975,-29975,-29983,-29984,-29984,-29983,-29978,-29983]} 1. e4 {[%emt 0:02:35]} c5 {[%emt 0:00:15]} 2. Nf3 {[%emt 0:00:08]} Nc6 {[%emt 0:00:08]} 3. Bb5 {[%emt 0:00:48]} g6 {[%emt 0:00:18]} 4. O-O {[%emt 0:00:26]} Bg7 {[%emt 0:00:04]} 5. c3 {[%emt 0:00:13]} Nf6 {[%emt 0:00:05]} 6. Re1 {[%emt 0:00:10]} O-O {[%emt 0:00:05]} 7. d4 {[%emt 0:00:13]} d5 $1 {[%emt 0:00:05][%mdl 4] is now more promising than 7...cxd4.} 8. e5 {[%emt 0:00:08]} Ne4 {[%emt 0:00:03]} 9. Be3 {[%emt 0:00:39] B31: Sicilian: 2...Nc6 3 Bb5 g6.} cxd4 {[%emt 0:00:19]} 10. cxd4 {[%emt 0:01:14]} Qb6 {[%emt 0:00:10]} 11. Bxc6 {[%emt 0:01:13] The position is equal.} Qxc6 {[%emt 0:00:06]} 12. Nfd2 {[%emt 0:02:42]} Be6 {[%emt 0:08:01]} 13. Nb3 {[%emt 0:06:07] [#] Hoping for f3.} f6 $146 {[%emt 0:07:15]} ({Predecessor:} 13... f5 14. f3 f4 15. Bc1 Rad8 16. Qe2 Ng5 17. h4 Ne4 18. fxe4 dxe4 19. Qxe4 Bd5 {0-1 (43) Duda,J (2750)-Carlsen,M (2864) chess24.com INT 2022}) 14. f3 {[%emt 0:01:25]} Ng5 {[%emt 0:00:03]} 15. Nc3 {[%emt 0:00:12]} b6 {[%emt 0:02:34]} 16. Rc1 {[%emt 0:07:58]} Nf7 {[%emt 0:09:34]} 17. exf6 {[%emt 0:09:56]} (17. Bf4 $14) 17... exf6 $11 {[%emt 0:00:06]} 18. Bf4 {[%emt 0:00:12]} g5 {[%emt 0:31:56]} (18... Rac8 $11 {is superior.}) 19. Bg3 {[%emt 0:09:12]} (19. Nb1 $5 {[%cal Rc1c6]} Qe8 20. Bg3 $11) 19... Qd7 {[%emt 0:00:07]} 20. Qe2 {[%emt 0:02:39]} Rfe8 {[%emt 0:04:01]} 21. Qb5 {[%emt 0:03:23]} f5 {[%emt 0:09:36]} 22. Qxd7 {[%emt 0:02:59]} Bxd7 {[%emt 0:00:04] This bishop pair is nice.} 23. Nxd5 {[%emt 0:00:15] Strongly threatening Rc7.} f4 {[%emt 0:00:36]} 24. Bf2 {[%emt 0:00:22]} Nd6 {[%emt 0:00:54]} 25. Nd2 {[%emt 0:05:35]} Rxe1+ {[%emt 0:07:53]} 26. Rxe1 {[%emt 0:00:24]} Rd8 {[%emt 0:00:53]} 27. h4 {[%emt 0:06:32]} h6 {[%emt 0:04:06][%cal Bh7h6,Bh6g5,Bg5g4][%mdl 32]} 28. b3 {[%emt 0:02:12]} Nf5 {[%emt 0:01:05]} 29. hxg5 {[%emt 0:01:02]} hxg5 {[%emt 0:00:05]} 30. Ne7+ {[%emt 0:04:17]} (30. Ne4 $5 {[%cal Re4g5]}) 30... Kf7 {[%emt 0:00:31]} 31. Nxf5 {[%emt 0:02:24]} Bxf5 {[%emt 0:00:08]} 32. Ne4 {[%emt 0:00:03]} Kg6 {[%emt 0:00:48]} 33. Rd1 {[%emt 0:02:25]} g4 {[%emt 0:01:13] [#] And now ...g3 would win.} 34. d5 {[%emt 0:01:26]} Be5 {[%emt 0:03:09]} 35. Kf1 {[%emt 0:06:20]} Bc8 {[%emt 0:00:05]} 36. d6 {[%emt 0:09:01]} Bb7 {[%emt 0:02:02] Prevents Rd5.} 37. Bh4 {[%emt 0:01:24]} Rd7 {[%emt 0:01:05]} 38. Be7 {[%emt 0:00:21]} Bxe4 {[%emt 0:06:14]} 39. fxe4 {[%emt 0:00:41]} Bf6 {[%emt 0:03:25]} 40. Bxf6 {[%emt 0:01:48]} Kxf6 {[%emt 0:00:04][%mdl 4096] Endgame KR-KR} 41. Re1 $2 {[%emt 0:30:07]} (41. Rd5 $11 {and White is okay.}) 41... Ke5 $19 {[%emt 0:30:09]} 42. Rc1 {[%emt 0:00:00]} Rxd6 {[%emt 0:00:00]} 43. Ke2 {[%emt 0:00:00][%mdl 8192] Inhibits Rd2+.} (43. Rc7 $17) 43... Kxe4 {[%emt 0:00:00]} 44. Rc4+ {[%emt 0:00:00]} Kf5 {[%emt 0:00:00]} 45. Rc7 {[%emt 0:00:00]} a5 {[%emt 0:00:00]} 46. Rc8 {[%emt 0:00:00]} Re6+ {[%emt 0:00:00]} 47. Kd2 {[%emt 0:00:00]} (47. Kf1 $142 Re5 48. Rf8+ Kg5 49. Rg8+ Kh4 50. Kf2) 47... Re3 {[%emt 0:00:00] aiming for ...Rg3.} 48. Rh8 {[%emt 0:00:00]} Rg3 {[%emt 0:00:00]} 49. Rh2 {[%emt 0:00:00]} Re3 {[%emt 0:00:00]} 50. Rh8 {[%emt 0:00:00]} Kg5 {[%emt 0:00:00]} 51. Rh7 {[%emt 0:00:00]} b5 {[%emt 0:00:00]} 52. Kd1 {[%emt 0:00:00]} a4 {[%emt 0:00:00][%cal Ba5a4,Ba4b3][%mdl 32]} 53. Rb7 {[%emt 0:00:00]} axb3 {[%emt 0:00:00]} 54. Rxb5+ {[%emt 0:00:00] [#]} Kh4 $1 {[%emt 0:00:00] ( -> ...Kg3)} 55. a4 {[%emt 0:03:32]} Kg3 {[%emt 0:00:00] Black mates.} 56. a5 {[%emt 0:01:39]} Kxg2 {[%emt 0:00:00]} 57. a6 {[%emt 0:01:14]} Re6 {[%emt 0:00:00]} 58. Ra5 {[%emt 0:02:24]} f3 {[%emt 0:00:00]} 59. a7 {[%emt 0:00:06]} Rd6+ {[%emt 0:01:09]} 60. Kc1 {[%emt 0:00:26]} Rd8 {[%emt 0:00:07] Weighted Error Value: White=0.64/Black=0.13 (very precise)} 0-1

[Event "HSK GM Invitational 2022"]
[Site "Hamburg"]
[Date "2022.05.21"]
[Round "2.3"]
[White "Woelk, Tom-Frederic"]
[Black "Svane, Frederik"]
[Result "1/2-1/2"]
[ECO "E20"]
[WhiteElo "2315"]
[BlackElo "2501"]
[Annotator "TA"]
[PlyCount "49"]
[EventDate "2022.05.20"]
[EventType "tourn"]
[EventCountry "GER"]
[SourceTitle "playchess.com"]
[Source "ChessBase"]
[SourceQuality "1"]
[TimeControl "40/5400+30:1800+30"]

{[%evp 9,49,3,17,16,8,0,0,0,0,0,0,0,0,0,0,0,6,-19,0,0,0,0,0,-122,-120,-112,0,0,0,0,0,0,0,0,0,0,0,0,0,0,0,0]} 1. d4 {[%emt 0:00:03][%cal Bd2d4,Bd4d5][%mdl 32]} Nf6 {[%emt 0:00:36]} 2. c4 {[%emt 0:00:24]} e6 {[%emt 0:00:47]} 3. Nc3 {[%emt 0:00:04]} Bb4 {[%emt 0:00:06]} 4. f3 {[%emt 0:00:03]} c5 {[%emt 0:00:07]} 5. d5 {[%emt 0:00:04]} b5 {[%emt 0:00:05]} 6. e4 {[%emt 0:00:03] E20: Nimzo-Indian: 4 g3 and 4 f3.} d6 {[%emt 0:00:07] outshines the older 6...bxc4.} 7. Nge2 {[%emt 0:00:03]} bxc4 {[%emt 0:00:09]} 8. Nf4 {[%emt 0:00:03]} g5 {[%emt 0:00:10]} (8... e5 $5 9. Nfe2 Ba6 $11) 9. Nfe2 {[%emt 0:04:34]} exd5 {[%emt 0:00:06]} 10. exd5 {[%emt 0:01:27]} Qe7 $36 {[%emt 0:00:05][%mdl 2048] Black has some pressure.} 11. Bxg5 {[%emt 0:07:17]} Bxc3+ {[%emt 0:00:11]} 12. bxc3 {[%emt 0:00:06] Threatening Qd2.} Nbd7 $1 {[%emt 0:00:05] [#]} 13. Qa4 $146 {[%emt 0:09:30]} ({Predecessor:} 13. Qd2 Ne5 14. Kd1 Rg8 15. Ng3 Rb8 16. Bh4 Rg6 17. Be2 Qb7 18. f4 Rxg3 19. Bxf6 Rxg2 20. fxe5 {0-1 (37) Erigaisi,A (2675)-Sargsyan,S (2639) Ciutadella de Menorca 2022}) 13... Rb8 {[%emt 0:41:59]} 14. Rd1 $1 {[%emt 0:16:38]} ({Much weaker is} 14. Qxa7 O-O 15. h4 Re8 $19) 14... O-O {[%emt 0:26:13] Threatens to win with ...Ne5.} 15. Qxc4 {[%emt 0:09:31]} Re8 {[%emt 0:00:06] ...Rb2 is the strong threat.} 16. Rd2 {[%emt 0:06:37] Prevents Rb2.} (16. Kf2 $1 $11 {keeps the balance.}) 16... Rb1+ $17 {[%emt 0:15:31]} 17. Kf2 {[%emt 0:02:24] [#]} Ba6 {[%emt 0:03:26]} 18. Qxa6 $11 {[%emt 0:05:54] The board is on fire. The position is equal.} Ng4+ $1 {[%emt 0:00:03][%mdl 64] Discovered Attack} 19. fxg4 {[%emt 0:00:37]} Qxg5 {[%emt 0:00:04][%csl Ge8][%cal Rg5e3]} 20. Qd3 {[%emt 0:05:58] Prevents Qe3+.} Ne5 {[%emt 0:03:13]} 21. Qxb1 {[%emt 0:00:39]} Qxd2 {[%emt 0:00:04]} 22. h3 {[%emt 0:04:08] Strongly threatening Qf5.} Nd3+ {[%emt 0:08:17]} 23. Kg1 {[%emt 0:00:24] aiming for Ng3.} Rxe2 {[%emt 0:05:29]} 24. Bxe2 {[%emt 0:00:05]} Qe3+ {[%emt 0:00:04]} 25. Kh2 {[%emt 0:00:08] Weighted Error Value: White=0.13 (very precise) /Black=0.08 (flawless)} 1/2-1/2

[Event "HSK GM Invitational 2022"]
[Site "Hamburg"]
[Date "2022.05.21"]
[Round "2.4"]
[White "Mendonca, Leon Luke"]
[Black "Colpe, Malte"]
[Result "1-0"]
[ECO "D41"]
[WhiteElo "2551"]
[BlackElo "2348"]
[Annotator "TA"]
[PlyCount "173"]
[EventDate "2022.05.20"]
[EventType "tourn"]
[EventCountry "GER"]
[SourceTitle "playchess.com"]
[Source "ChessBase"]
[SourceQuality "1"]
[TimeControl "40/5400+30:1800+30"]

{[%evp 19,173,8,12,0,16,0,0,0,37,42,64,57,30,19,21,26,15,11,56,0,0,0,46,0,83,96,126,62,41,56,52,55,45,68,194,187,199,168,175,8,4,0,7,0,11,0,0,0,0,0,58,61,68,59,66,70,130,104,107,94,109,120,130,130,147,151,148,142,215,216,228,210,210,174,273,250,260,197,199,179,260,180,264,221,214,215,211,210,418,372,330,289,284,266,207,207,181,181,289,289,289,289,289,289,289,140,289,289,289,289,289,181,173,160,669,669,618,583,397,390,1340,1575,1408,1415,1252,1193,608,383,7240,5200,29970,29971,29973,29974,29975,29973,29973,29967,29973,29966,29965,1201,29959,12844,29968,29970,29946,29939,29941,29940,12850,12840,29988,29989,29989,29988]} 1. d4 {[%emt 0:00:06]} Nf6 {[%emt 0:00:06]} 2. c4 {[%emt 0:00:17]} e6 {[%emt 0:00:08]} 3. Nf3 {[%emt 0:00:38]} d5 {[%emt 0:00:09]} 4. Nc3 {[%emt 0:00:31]} c5 {[%emt 0:00:11]} 5. cxd5 {[%emt 0:01:44]} Nxd5 {[%emt 0:00:12]} 6. e4 {[%emt 0:01:30]} Nxc3 {[%emt 0:00:08]} 7. bxc3 {[%emt 0:00:03]} cxd4 {[%emt 0:00:08]} 8. cxd4 {[%emt 0:00:05]} Bb4+ {[%emt 0:00:07]} 9. Bd2 {[%emt 0:00:05]} Bxd2+ {[%emt 0:00:06]} 10. Qxd2 {[%emt 0:00:05]} O-O {[%emt 0:00:10]} 11. Rd1 {[%emt 0:08:46] D41: Queen's Gambit Declined: Semi-Tarrasch with 5 cxd5.} Bd7 {[%emt 0:03:06]} 12. Bd3 {[%emt 0:13:40]} Ba4 {[%emt 0:02:09]} 13. Rb1 {[%emt 0:03:31] The position is equal.} Bc6 {[%emt 0:04:51]} (13... Nc6 $5 {[%cal Rc6d4]}) 14. O-O {[%emt 0:04:45] [#]} h6 $146 {[%emt 0:06:11]} ({Predecessor:} 14... Nd7 15. d5 Nc5 16. dxc6 Qxd3 17. Qxd3 Nxd3 18. cxb7 Rab8 19. Nd4 Nc5 20. Rb5 Nxe4 21. Nc6 Nd6 22. Nxb8 Rxb8 23. Rb3 g6 24. Rd1 {1-0 (24) Stefansson,H (2525)-Thorhallsson,S (2252) Selfoss 2022}) 15. Bc2 {[%emt 0:04:09]} b6 {[%emt 0:08:52]} 16. Rbd1 {[%emt 0:08:53]} Nd7 {[%emt 0:02:56]} 17. d5 {[%emt 0:10:27]} exd5 {[%emt 0:07:14]} ({Don't take} 17... Bb5 18. dxe6 Bxf1 19. exd7 $16 (19. Kxf1 Nc5 $16) (19. Qxd7 Qxd7 20. exd7 Be2 $11)) 18. exd5 {[%emt 0:14:50]} Bb7 {[%emt 0:01:13]} 19. d6 {[%emt 0:04:57]} (19. Nd4 $14) 19... Qf6 $11 {[%emt 0:05:44]} 20. Rfe1 {[%emt 0:03:22]} Rad8 {[%emt 0:12:30]} (20... Rac8 $11 {deserves consideration.}) 21. Be4 $40 {[%emt 0:01:50][%mdl 128] White attacks.} (21. Re7 $14 {might be stronger.}) 21... Bc8 {[%emt 0:05:55]} (21... Bxe4 $11 {remains equal.} 22. Rxe4 Rfe8 23. Rxe8+ Rxe8) 22. Bc6 $1 $16 {[%emt 0:06:10] 0x0.000a5aa29aa0dp-1022s more active pieces. The black rooks are badly placed.} Rfe8 {[%emt 0:04:33]} 23. Rxe8+ {[%emt 0:03:53]} ({White should play} 23. Re7 $1 $16) 23... Rxe8 $14 {[%emt 0:00:06]} 24. h3 {[%emt 0:00:48]} Rd8 {[%emt 0:02:36]} 25. Qe3 {[%emt 0:04:52]} Nb8 {[%emt 0:07:41]} 26. Ba4 {[%emt 0:01:33]} Bb7 {[%emt 0:05:52]} (26... Be6 $14) 27. Qe7 $1 $18 {[%emt 0:01:45]} Bxf3 {[%emt 0:00:38]} 28. gxf3 {[%emt 0:00:39]} Na6 {[%emt 0:04:02][%cal Bb8a6,Ba6c5,Bc5e6][%mdl 32]} 29. Qxf6 $2 {[%emt 0:00:34]} ({White must play} 29. Bb3 $1 $18) 29... gxf6 {[%emt 0:00:06][%mdl 4096] Endgame KRB-KRN} 30. Bc2 {[%emt 0:00:29]} Nc5 {[%emt 0:01:12]} 31. Be4 {[%emt 0:00:31] Against Nb7} Kg7 {[%emt 0:06:44]} 32. Kg2 {[%emt 0:00:26]} f5 {[%emt 0:01:57]} 33. Bxf5 {[%emt 0:00:27]} Kf6 {[%emt 0:00:06]} 34. Rd5 {[%emt 0:00:35]} Ne6 {[%emt 0:01:42]} (34... Nb7 $1 $11) 35. Kg3 $14 {[%emt 0:00:31]} Ng7 {[%emt 0:03:12]} 36. Bc2 {[%emt 0:00:29]} Ke6 {[%emt 0:00:53]} 37. Bb3 {[%emt 0:00:19]} Nf5+ {[%emt 0:02:51] Black is on the road to losing.} (37... Kf6 $14) 38. Kf4 {[%emt 0:00:35]} Nxd6 {[%emt 0:00:25]} 39. Ra5+ $1 {[%emt 0:00:34]} Kf6 {[%emt 0:00:19]} 40. Rxa7 {[%emt 0:00:06]} b5 {[%emt 0:02:25]} 41. Rc7 {[%emt 0:05:48] Prevents Nc4.} Ra8 {[%emt 0:05:43]} 42. Rd7 {[%emt 0:02:38]} Ra6 {[%emt 0:01:39]} 43. Ke3 {[%emt 0:03:45]} Nc4+ {[%emt 0:03:06]} (43... Ke5 $16 44. f4+ Kf5) 44. Kd4 $1 $18 {[%emt 0:02:24]} Ne5 {[%emt 0:06:13]} 45. Rb7 {[%emt 0:01:45]} Rd6+ {[%emt 0:03:12]} 46. Ke4 {[%emt 0:12:30]} Nd3 {[%emt 0:02:24]} (46... Nc4 $142 47. Rxb5 Nd2+ 48. Ke3 Nxb3) 47. Rxf7+ {[%emt 0:02:48]} Kg6 {[%emt 0:00:05]} 48. Ke3 {[%emt 0:01:26]} Nc5 {[%emt 0:01:36]} 49. Rf4 {[%emt 0:01:14]} Nxb3 {[%emt 0:05:14]} (49... Rd3+ $142 50. Ke2 Rc3) 50. axb3 {[%emt 0:00:01] KR-KR} Rd5 {[%emt 0:00:30]} (50... Rc6 {was necessary.} 51. Kd3 h5) 51. Rd4 Re5+ {[%emt 0:00:30]} 52. Kf4 {[%emt 0:01:00]} Rc5 {[%emt 0:00:30]} 53. Kg3 {[%emt 0:00:30] Hoping for b4.} h5 $2 {[%emt 0:00:30]} (53... Rc3 54. Rb4 Rc5) 54. Kf4 {[%emt 0:00:30]} Rc3 {[%emt 0:00:30]} 55. Rb4 {[%emt 0:00:30]} Rc5 {[%emt 0:00:30]} 56. h4 {[%emt 0:00:30]} Kf6 {[%emt 0:00:30]} 57. Rd4 {[%emt 0:00:30]} Rc3 {[%emt 0:00:30]} 58. b4 {[%emt 0:00:30]} Rb3 {[%emt 0:00:30]} (58... Rc2 {was worth a try.} 59. Rd6+ Ke7) 59. Ke4 {[%emt 0:00:30]} Rb2 {[%emt 0:00:30]} 60. Kd5 {[%emt 0:00:30]} Rc2 {[%emt 0:00:30]} 61. Rf4+ {[%emt 0:00:30]} Kg6 {[%emt 0:00:30] [#]} 62. Kd6 {[%emt 0:00:30]} (62. Ke6 $1 $18 {is the precise move to win.}) 62... Rc4 {[%emt 0:00:30] [#]} (62... Rc3 $16 63. Ke6 Rb3) 63. Ke5 $1 {[%emt 0:00:30]} Rc3 {[%emt 0:00:30]} 64. Rf6+ {[%emt 0:00:30]} Kg7 {[%emt 0:00:30]} 65. Rf5 {[%emt 0:00:30]} Rc4 {[%emt 0:00:30]} 66. Rf4 {[%emt 0:00:30]} Rc2 $2 {[%emt 0:00:30]} (66... Rc3 $16 67. Rf5 Rb3) 67. Kf5 {[%emt 0:00:30]} Kh6 {[%emt 0:00:30]} 68. Re4 {[%emt 0:00:30]} Rxf2 {[%emt 0:00:30]} 69. f4 {[%emt 0:00:30][%cal Bf3f4,Bf4f5][%mdl 32]} Rb2 $2 {[%emt 0:00:30]} (69... Rh2 70. Re6+ Kg7) 70. Kf6 {[%emt 0:00:30] Threatens to win with f5.} Rc2 {[%emt 0:00:30]} 71. f5 {[%emt 0:00:30] Kf7 would kill now.} Rc4 {[%emt 0:00:30]} 72. Ke5 {[%emt 0:00:30] Intending Rxc4 and mate.} Rc1 {[%emt 0:00:30]} 73. Rd4 {[%emt 0:00:30] And now Rd5 would win.} Rb1 $2 {[%emt 0:00:30]} (73... Kg7 74. Rd7+ Kh6) 74. Ke6 {[%emt 0:00:30] White threatens Rd8 and mate.} Re1+ {[%emt 0:00:30]} 75. Kf7 {[%emt 0:00:30]} Ra1 {[%emt 0:00:30]} 76. Re4 {[%emt 0:00:30]} Ra7+ {[%emt 0:00:30]} 77. Re7 {[%emt 0:00:30]} Ra4 {[%emt 0:00:30]} 78. Re6+ {[%emt 0:00:30]} Kh7 {[%emt 0:00:30]} 79. Re4 {[%emt 0:00:30]} Ra7+ {[%emt 0:00:30]} 80. Kf6 {[%emt 0:00:30]} (80. Re7 $142 Ra8 81. f6 Rc8 82. Re5 Rc7+ 83. Ke6 Rc6+ 84. Kf5 Rc3 85. Re8 Rf3+ 86. Ke6 Re3+ 87. Kd7 Rd3+ 88. Ke7 Re3+ 89. Kf8) 80... Kh6 {[%emt 0:00:30]} 81. Re6 {[%emt 0:00:30]} (81. Re8 $142 Kh7 82. Rb8 Rc7 83. Kg5 Rc3 84. Rb7+ Kg8 85. Rxb5 Rg3+ 86. Kf6) 81... Ra4 {[%emt 0:00:30]} 82. Ke7+ {[%emt 0:00:30]} Kh7 {[%emt 0:00:30]} 83. f6 {[%emt 0:00:30]} Ra7+ {[%emt 0:00:30]} 84. Kf8 {[%emt 0:00:30]} Kg6 {[%emt 0:00:30]} 85. f7+ {[%emt 0:00:30]} Kh7 {[%emt 0:00:30]} 86. Rf6 {[%emt 0:00:30]} Rb7 {[%emt 0:00:30]} 87. Rf1 {[%emt 0:00:30] Weighted Error Value: White=0.14 (very precise) /Black=0.24 (precise)} 1-0